bitfinex/quotes_ETHUSD_20240730
["timestamp","ask_amount","ask_price","bid_price","bid_amount"]
[1722342305448,3.0,3343.8,3343.1,0.10999456]
[1722342305602,4.131925,3343.8,3343.1,0.10999456]
[1722342305803,2.99074,3343.7,3343.1,0.10999456]
[1722342305999,2.9909,3343.5,3342.7,7.65058]
[1722342306202,5.43687,3343.4,3343.2,0.10998196]
[1722342306536,8.43687,3343.4,3342.6,2.99166]
[1722342306846,3.0,3343.3,3342.7,0.11004122]
[1722342307438,5.99106,3343.3,3342.7,0.11004122]
[1722342307629,2.99114,3343.2,3342.4,5.41756]
[1722342307834,5.99107,3343.3,3342.8,0.11002862]
[1722342308337,2.99128,3343.1,3342.9,0.11001602]
[1722342308544,3.0,3343.0,3342.2,2.99203]
[1722342309143,5.99133,3343.0,3342.2,2.99203]
[1722342309366,3.0,3343.0,3342.2,2.99203]
[1722342309853,5.99137,3343.0,3342.2,2.99203]
[1722342310018,2.99141,3342.9,3342.1,2.99211]
[1722342310218,5.3638,3342.8,3342.1,2.99211]
[1722342311234,5.3638,3342.8,3342.1,3.827506]
[1722342311461,3.0,3342.9,3342.2,2.99203]
[1722342312626,3.0,3342.9,3342.2,2.99198]
[1722342312979,5.99133,3343.0,3342.2,2.99198]
[1722342314772,5.99133,3343.0,3342.1,0.835436]
[1722342314923,3.0,3343.0,3342.3,2.99195]
[1722342315532,3.0,3343.0,3342.6,2.99165]
[1722342315720,3.0,3343.3,3342.6,2.99165]
[1722342316135,3.0,3343.3,3342.5,2.99176]
[1722342316660,5.99105,3343.3,3342.5,2.99176]
[1722342319232,5.99105,3343.3,3342.4,2.2831]
[1722342319233,1.88261439,3343.0,3342.4,5.27495]
[1722342319523,1.88260406,3343.0,3342.5,2.99176]
[1722342319868,1.88260406,3343.1,3342.5,2.99171]
[1722342320272,1.88260406,3343.1,3342.4,2.99185]
[1722342320468,1.88260406,3343.0,3342.3,5.7446786]
[1722342320783,1.88273523,3342.9,3342.3,5.36194]
[1722342320967,1.88273523,3342.9,3342.4,0.10655988]
[1722342321162,2.2874,3342.8,3342.4,0.10655988]
[1722342321366,2.2874,3342.8,3342.2,2.99204]
[1722342321367,7.17013523,3342.8,3342.2,2.99204]
[1722342321605,7.17013523,3342.8,3342.5,0.10654728]
[1722342321606,5.2874,3342.8,3342.5,0.10654728]
[1722342321797,5.2874,3342.8,3342.2,2.99204]
[1722342322014,7.17013523,3342.8,3342.6,0.10653467]
[1722342322202,7.17013523,3342.8,3342.4,2.99185]
[1722342322203,3.0,3342.8,3342.4,2.99185]
[1722342322507,1.88273523,3343.0,3342.7,0.10652207]
[1722342322667,1.88273523,3343.0,3342.3,2.99194]
[1722342322870,1.88273523,3343.0,3342.8,0.10650947]
[1722342323183,4.88273523,3343.1,3342.9,0.10649688]
[1722342323368,4.88273523,3343.1,3342.4,2.99184]
[1722342323569,3.0,3343.1,3343.0,0.10648428]
[1722342323804,5.02543504,3343.1,3342.4,2.99184]
[1722342324021,3.55,3343.1,3342.4,2.99184]
[1722342324334,1.88296717,3343.0,3342.4,2.99184]
[1722342324739,1.88290136,3343.0,3342.3,2.99193]
[1722342325305,1.88290136,3343.0,3342.7,0.988]
[1722342325745,4.88290136,3343.1,3342.9,0.988]
[1722342325895,1.88290136,3343.3,3343.0,2.99127]
[1722342326092,1.88290136,3343.7,3343.3,2.99104]
[1722342326395,1.88295419,3343.8,3343.6,0.988]
[1722342326595,1.88296782,3343.7,3343.6,0.988]
[1722342326838,1.88296782,3343.7,3343.0,2.99127]
[1722342327013,1.88267933,3343.5,3343.0,0.988]
[1722342327339,0.41448678,3343.6,3342.7,2.99153]
[1722342327340,3.41448678,3343.6,3342.7,2.99153]
[1722342327547,1.88276417,3343.4,3342.7,2.99154]
[1722342327725,1.88276417,3343.4,3343.2,0.2]
[1722342328063,2.71157227,3343.3,3343.2,0.2]
[1722342328226,0.8288081,3343.3,3343.2,0.2]
[1722342328547,1.88254043,3343.3,3343.2,0.2]
[1722342329054,8.98204,3343.4,3343.2,0.2]
[1722342329055,5.99099,3343.4,3343.2,0.2]
[1722342329398,2.99105,3343.3,3343.2,0.2]
[1722342329591,6.54105,3343.3,3343.2,0.2]
[1722342330551,3.55,3343.3,3343.2,0.2]
[1722342331103,5.43228616,3343.3,3343.2,0.2]
[1722342331405,3.55,3343.3,3343.2,0.30617546]
[1722342331627,3.55,3343.3,3343.2,0.2]
[1722342331628,3.0,3343.3,3343.2,0.2]
[1722342331875,1.88219269,3343.4,3343.2,0.4]
[1722342332208,1.88219269,3343.3,3343.2,0.4]
[1722342333053,6.25763938,3343.3,3343.2,0.4]
[1722342333232,5.69878207,3343.3,3343.2,0.4]
[1722342333438,8.69878207,3343.3,3343.2,0.4]
[1722342333607,6.81658938,3343.3,3343.2,0.4]
[1722342334406,14.99449508,3343.3,3343.2,0.4]
[1722342334649,12.79868938,3343.3,3343.2,0.4]
[1722342334949,14.99447978,3343.3,3343.2,0.4]
[1722342335354,12.79868938,3343.3,3343.2,0.4]
[1722342339089,18.54803082,3343.3,3343.2,0.4]
[1722342339596,23.89978938,3343.3,3343.2,0.4]
[1722342339797,22.22311293,3343.3,3343.2,0.4]
[1722342340096,19.10973938,3343.3,3343.2,0.4]
[1722342340254,18.54685692,3343.3,3343.2,0.4]
[1722342340459,21.70185692,3343.3,3343.2,0.4]
[1722342340682,19.10973938,3343.3,3343.2,0.4]
[1722342341597,18.71042118,3343.3,3343.2,0.4]
[1722342342821,16.11868938,3343.3,3343.2,0.4]
[1722342343322,12.41368938,3343.3,3343.2,0.4]
[1722342343491,15.00477653,3343.3,3343.2,0.4]
[1722342343687,12.41368938,3343.3,3343.2,0.4]
[1722342343899,18.55973938,3343.3,3343.2,0.4]
[1722342344416,21.55078938,3343.3,3343.2,0.4]
[1722342344587,24.21205874,3343.3,3343.2,0.4]
[1722342345512,24.21205874,3343.3,3341.3,15.44284]
[1722342345513,2.99213,3342.1,3341.3,2.3593]
[1722342345725,4.87084493,3342.1,3341.3,2.3593]
[1722342346026,4.87871493,3342.0,3341.4,0.10329554]
[1722342346238,3.55,3342.0,3341.4,0.10329554]
[1722342346539,0.55,3342.0,3341.4,0.10329554]
[1722342349438,0.55,3342.0,3340.9,2.99311]
[1722342349439,5.41955995,3342.0,3341.0,5.35241]
[1722342349592,6.19923995,3342.0,3341.5,0.10019554]
[1722342349792,6.19923995,3342.0,3341.0,2.3593]
[1722342349793,3.0,3341.9,3341.3,2.99284]
[1722342350001,4.87729995,3342.2,3341.6,0.10018293]
[1722342350312,5.41948995,3342.1,3341.4,2.3593]
[1722342350497,5.41948995,3342.1,3341.7,0.10017032]
[1722342350725,5.99222,3342.0,3341.4,2.3593]
[1722342350929,5.99222,3342.0,3341.1,5.35227]
[1722342350930,4.87571726,3342.0,3341.1,5.35227]
[1722342351130,5.42571726,3342.1,3341.2,3.528137]
[1722342351357,5.99222,3342.0,3341.2,3.528137]
[1722342351570,0.55,3342.1,3341.3,0.10022076]
[1722342351571,4.73361726,3342.1,3341.3,0.10022076]
[1722342351737,4.87571726,3342.0,3341.3,0.10022076]
[1722342351948,4.87571726,3342.0,3341.1,2.3593]
[1722342351949,3.54236,3341.9,3341.4,0.10020815]
[1722342352143,3.0,3341.8,3341.4,0.10020815]
[1722342352346,3.0,3341.8,3341.1,2.3593]
[1722342352577,3.0,3341.8,3341.5,0.10019554]
[1722342352578,2.99249,3341.7,3341.5,0.10019554]
[1722342352730,3.0,3341.6,3341.1,2.3593]
[1722342352925,3.0,3341.7,3341.1,2.3593]
[1722342353177,5.99253,3341.7,3341.1,2.3593]
[1722342353380,2.99261,3341.6,3341.1,2.3593]
[1722342353672,3.0,3341.5,3341.1,2.3593]
[1722342353871,3.0,3341.7,3341.1,2.3593]
[1722342354381,5.99256,3341.7,3341.1,2.3593]
[1722342354728,5.99255,3341.7,3341.1,2.3593]
[1722342355147,2.9926,3341.6,3341.1,2.3593]
[1722342355480,3.0,3341.5,3341.1,2.3593]
[1722342355828,3.0,3341.5,3340.7,12.81368]
[1722342356031,5.99267,3341.5,3340.7,12.81368]
[1722342356348,2.99276,3341.4,3340.7,9.8203]
[1722342356563,3.0,3341.3,3340.7,2.4003]
[1722342356886,5.4941,3341.5,3340.7,2.4003]
[1722342356887,8.48678,3341.5,3340.7,2.4003]
[1722342357231,8.48677,3341.5,3340.7,2.4003]
[1722342357778,5.99267,3341.5,3340.7,2.4003]
[1722342357975,2.99282,3341.4,3340.7,2.4003]
[1722342358133,3.0,3341.3,3340.7,2.4003]
[1722342358335,5.99267,3341.5,3340.7,2.4003]
[1722342359448,3.0,3341.5,3340.7,5.39363]
[1722342359784,5.99268,3341.5,3340.7,2.4003]
[1722342360432,5.99268,3341.5,3340.7,5.39361]
[1722342361484,3.2721455,3341.4,3340.3,2.99368]
[1722342361648,2.99298,3341.2,3340.3,2.99368]
[1722342361848,5.99303,3341.1,3340.3,2.99368]
[1722342362238,5.99303,3341.1,3340.2,5.39952]
[1722342362239,3.0,3341.1,3340.2,5.39952]
[1722342362582,3.0,3341.1,3340.2,2.4057]
[1722342362583,3.592448,3341.0,3340.2,2.4057]
[1722342362894,3.0,3341.1,3340.3,0.05987069]
[1722342363054,3.0,3341.2,3340.2,2.99376]
[1722342363235,3.0,3341.2,3340.4,2.99363]
[1722342363801,3.0,3341.2,3340.2,2.99376]
[1722342363938,2.9436,3341.1,3340.1,7.42]
[1722342364146,3.59436,3341.0,3340.1,7.42]
[1722342364462,3.59436,3341.0,3340.2,2.99381]
[1722342364463,6.58747,3341.0,3340.2,2.99381]
[1722342364896,3.59436,3341.0,3340.2,2.99381]
[1722342365175,6.58748,3341.0,3340.2,2.99381]
[1722342365335,2.99347,3340.7,3339.6,5.36434]
[1722342365534,0.900673,3340.7,3339.9,2.99406]
[1722342365802,0.900673,3340.7,3340.0,2.994]
[1722342366009,0.900673,3340.7,3340.0,3.09373515]
[1722342366499,0.900673,3340.7,3340.0,0.09973515]
[1722342366660,0.900673,3340.7,3340.0,3.09369515]
[1722342367012,3.0,3340.8,3340.0,3.09369515]
[1722342367662,3.0,3340.8,3340.1,2.9939]
[1722342367861,5.4189,3340.9,3340.1,3.09362253]
[1722342368693,8.41213,3340.9,3340.1,3.09362253]
[1722342368906,5.4189,3340.9,3340.1,0.09972253]
[1722342369069,3.0,3341.4,3340.1,0.09972253]
[1722342369070,2.2708,3340.6,3340.1,0.09972253]
[1722342369414,2.2708,3340.6,3340.2,0.09970991]
[1722342369559,2.2708,3340.6,3339.8,2.99414]
[1722342369757,5.26429,3340.6,3339.9,0.09974777]
[1722342370273,2.99362,3340.5,3339.9,0.09974777]
[1722342370475,2.99401,3340.0,3339.5,7.42]
[1722342370703,2.4048,3340.1,3340.0,0.09973515]
[1722342370913,2.4048,3340.1,3339.4,3.0581288]
[1722342371109,2.4048,3340.1,3339.4,0.0635988]
[1722342371311,3.0,3340.1,3339.5,0.09957807]
[1722342371615,3.0,3340.3,3339.5,0.09957807]
[1722342371816,0.831653,3340.2,3339.5,0.09957807]
[1722342373178,3.0,3340.3,3339.5,0.09957807]
[1722342373484,3.0,3340.3,3339.6,2.4729]
[1722342373669,3.0,3340.4,3339.6,2.4729]
[1722342373874,3.0,3340.4,3339.7,0.10006489]
[1722342374291,2.99375,3340.3,3339.7,0.10006489]
[1722342374490,3.898731,3340.2,3339.7,0.10006489]
[1722342374686,3.0,3340.4,3339.5,2.99445]
[1722342374887,5.9937,3340.4,3339.8,0.10005227]
[1722342375116,2.3946,3340.2,3339.4,3.0581188]
[1722342375322,8.38847,3340.2,3339.9,0.10003965]
[1722342375519,8.38847,3340.2,3339.4,0.0635988]
[1722342375721,2.99406,3340.0,3339.4,0.0635988]
[1722342375889,2.99406,3340.0,3339.5,0.10009014]
[1722342376089,3.0,3339.9,3339.5,0.10009014]
[1722342377411,5.99401,3340.0,3339.5,0.10009014]
[1722342378330,8.98808,3340.0,3339.5,0.10009014]
[1722342378527,1.3070901,3339.9,3339.5,0.10009014]
[1722342380447,2.2606,3339.8,3339.5,0.10009014]
[1722342380606,5.2606,3339.8,3339.5,0.10009014]
[1722342380809,5.40788,3339.7,3339.5,0.10009014]
[1722342381006,3.0,3339.6,3339.5,0.10009014]
[1722342381337,3.0,3339.7,3339.5,0.10009014]
[1722342381506,3.96576501,3339.7,3339.5,0.10009014]
[1722342381705,3.0,3339.6,3339.5,0.10009014]
[1722342382353,3.97148501,3339.7,3339.5,0.10009014]
[1722342382709,6.96577501,3339.7,3339.5,0.10009014]
[1722342383377,3.97148501,3339.7,3339.5,0.10009014]
[1722342383665,0.56911488,3339.6,3339.5,0.10009014]
[1722342384250,3.97148501,3339.7,3339.5,0.10009014]
[1722342385717,3.0,3339.9,3339.5,0.10009014]
[1722342386417,2.99402,3340.0,3339.5,0.10009014]
[1722342386418,5.99384,3340.2,3339.5,0.10009014]
[1722342386934,2.99392,3340.1,3339.4,0.0635988]
[1722342387251,2.99392,3340.1,3339.5,0.10108836]
[1722342387420,4.44023257,3340.1,3339.5,0.10108836]
[1722342387947,3.0,3340.0,3339.5,0.10108836]
[1722342388252,3.0,3340.1,3339.5,3.09552836]
[1722342388457,3.0,3340.2,3339.5,0.16097422]
[1722342388611,3.0,3340.2,3339.7,2.99423]
[1722342388936,3.0,3340.2,3339.8,0.10105049]
[1722342389449,3.0,3340.2,3339.9,0.10103787]
[1722342389808,3.0,3340.2,3339.7,3.05410867]
[1722342390010,3.0,3340.2,3339.8,0.10105049]
[1722342390246,3.0,3340.2,3339.7,0.05987867]
[1722342390446,3.0,3340.2,3339.9,0.10103787]
[1722342390649,3.0,3340.2,3339.7,0.05987867]
[1722342390650,3.0,3340.2,3339.8,0.10105049]
[1722342390850,3.0,3340.2,3340.0,0.10102525]
[1722342391155,3.0,3340.2,3339.9,0.10103787]
[1722342391341,3.0,3340.2,3340.1,0.10101263]
[1722342391508,6.0,3340.2,3340.0,0.10102525]
[1722342391708,3.0,3340.2,3339.4,0.0635988]
[1722342391931,6.0,3340.2,3340.1,0.10101263]
[1722342392151,6.0,3340.2,3339.4,3.0580988]
[1722342392309,3.0,3340.1,3339.5,2.99445]
[1722342392504,3.0,3340.1,3339.6,2.99435]
[1722342392905,3.0,3340.1,3339.7,3.15521681]
[1722342393118,3.0,3340.1,3339.8,2.99418]
[1722342393322,3.0,3340.2,3339.8,2.99418]
[1722342393651,3.0,3340.2,3339.9,0.10103787]
[1722342393854,3.0,3340.2,3339.9,3.09513787]
[1722342394065,3.0,3340.2,3339.9,0.10103787]
[1722342394558,3.0,3340.2,3339.9,5.57318787]
[1722342394721,3.0,3340.2,3340.0,2.99398]
[1722342394932,3.0,3340.2,3339.9,2.57913787]
[1722342395112,3.0,3340.2,3340.1,0.10060499]
[1722342395314,3.0,3340.2,3339.9,2.4781]
[1722342395315,3.0,3340.2,3340.0,0.10061761]
[1722342395658,3.0,3340.2,3339.9,2.4781]
[1722342395977,3.0,3340.2,3340.1,0.10060499]
[1722342396156,3.0,3340.2,3340.0,0.10061761]
[1722342396367,3.0,3340.2,3340.1,0.10060499]
[1722342396658,3.0,3340.2,3339.9,2.4781]
[1722342396948,3.0,3340.3,3340.1,0.10060499]
[1722342397160,3.0,3340.3,3340.0,0.10061761]
[1722342397367,3.0,3340.3,3340.2,0.10059237]
[1722342397512,3.0,3340.3,3340.1,0.10060499]
[1722342397941,3.0,3340.3,3339.7,2.99426]
[1722342398260,3.0,3340.3,3339.8,2.99413]
[1722342398562,3.0,3340.3,3339.8,3.09482285]
[1722342398719,3.0,3340.3,3339.8,0.10064285]
[1722342398915,3.0,3340.3,3339.7,3.84177488]
[1722342399118,3.0,3340.3,3339.9,0.10063023]
[1722342399345,3.0,3340.3,3339.8,3.09480285]
[1722342399547,3.0,3340.3,3340.0,0.10061761]
[1722342399786,3.0,3340.3,3339.9,0.10063023]
[1722342399964,3.0,3340.3,3340.1,0.10060499]
[1722342400165,5.99374,3340.3,3340.1,0.10060499]
[1722342400382,3.05636957,3340.2,3339.4,3.0581388]
[1722342400604,6.05024957,3340.2,3339.4,0.0635988]
[1722342400895,2.99406,3340.0,3339.4,0.0635988]
[1722342401252,3.0,3339.9,3339.4,0.0635988]
[1722342401456,0.599406,3339.8,3339.4,0.0635988]
[1722342401707,3.0,3340.0,3339.4,3.0581288]
[1722342401858,7.8759935,3340.4,3339.5,5.44862]
[1722342401859,3.0,3340.1,3339.5,5.44862]
[1722342402197,3.0,3340.3,3339.6,2.99436]
[1722342402397,3.0,3340.3,3339.5,2.4542]
[1722342402564,4.03043835,3340.2,3339.4,0.0635988]
[1722342402907,3.0,3340.1,3339.4,0.0635988]
[1722342403191,3.0,3340.1,3339.4,3.0581188]
[1722342403391,7.03039835,3340.2,3339.4,0.0635988]
[1722342403979,2.9941,3339.9,3339.4,0.0635988]
[1722342404188,3.78631801,3339.8,3339.4,0.0635988]
[1722342405153,3.0,3339.8,3339.4,3.0580888]
[1722342405388,3.0,3340.1,3339.5,2.4644]
[1722342406760,5.99393,3340.1,3339.4,0.0635988]
[1722342407092,3.0,3340.1,3339.4,0.0635988]
[1722342407894,4.87624711,3340.3,3339.6,2.99431]
[1722342408193,4.25944711,3340.3,3339.6,0.60523188]
[1722342408399,3.0086957,3340.4,3339.8,2.99412]
[1722342408760,3.0086957,3340.4,3340.0,0.2]
[1722342409685,3.0,3340.3,3340.0,0.2]
[1722342411024,3.0,3340.3,3340.1,0.10078073]
[1722342411900,4.08800461,3340.3,3340.1,0.10078073]
[1722342412505,3.0,3340.3,3340.1,0.10078073]
[1722342412807,3.0,3340.3,3340.1,3.09465073]
[1722342413094,4.8783177,3340.7,3340.2,2.99382]
[1722342413266,4.8783177,3340.7,3340.2,0.10076811]
[1722342413472,4.87824407,3340.7,3340.0,3.45381322]
[1722342413700,1.87824407,3340.6,3340.3,0.10075549]
[1722342414005,1.87824407,3340.6,3340.0,0.4]
[1722342414311,1.87824407,3340.7,3340.5,2.99355]
[1722342414608,1.87824407,3341.1,3340.4,5.3239]
[1722342414833,1.87824407,3341.0,3340.6,0.10037364]
[1722342415009,1.87824407,3341.0,3340.5,0.10038625]
[1722342415321,2.58407588,3341.1,3340.6,0.10037364]
[1722342415526,1.877833,3341.0,3340.4,2.3303]
[1722342415722,4.877833,3341.0,3340.7,0.10029373]
[1722342415925,3.0,3340.9,3340.4,2.3303]
[1722342416146,3.70624288,3341.1,3340.8,0.10028111]
[1722342416433,8.57723928,3341.1,3340.2,2.99382]
[1722342416641,8.57723928,3341.1,3340.0,38.109404]
[1722342416642,2.99338,3340.7,3340.0,0.4]
[1722342416931,0.598659,3340.6,3340.0,0.4]
[1722342417252,1.8779164,3340.6,3340.0,0.6]
[1722342418082,5.9933,3340.8,3340.0,3.59396]
[1722342418083,1.8779164,3340.7,3340.0,3.59396]
[1722342418287,3.0,3340.8,3340.2,2.99382]
[1722342418288,4.8779164,3340.8,3340.2,2.99382]
[1722342418537,4.8779164,3340.8,3340.1,2.99391]
[1722342418538,1.8779164,3340.8,3340.1,2.99391]
[1722342418728,1.8779164,3340.8,3340.2,2.99383]
[1722342418896,4.8779164,3340.9,3340.2,3.652539]
[1722342419101,3.0,3340.9,3340.2,3.652539]
[1722342419328,4.8779164,3341.0,3340.2,3.652539]
[1722342419486,4.87702408,3341.0,3340.1,5.41321]
[1722342419686,4.64336143,3341.3,3340.1,5.41317]
[1722342419687,1.87702408,3340.9,3340.1,5.41317]
[1722342419909,1.87702408,3340.9,3340.2,2.99383]
[1722342420183,3.0,3340.9,3340.2,2.99383]
[1722342420529,3.0,3340.9,3340.3,2.99372]
[1722342420741,1.87702408,3341.0,3340.3,2.99372]
[1722342420904,1.87702408,3341.0,3340.2,2.99382]
[1722342420905,3.0,3341.0,3340.2,2.99382]
[1722342421081,4.87702408,3341.0,3340.2,2.99382]
[1722342421405,6.42766263,3341.0,3340.2,2.99382]
[1722342421616,9.42079263,3341.0,3340.2,2.99382]
[1722342421818,4.55063855,3341.0,3340.2,2.99377]
[1722342422131,4.87655096,3341.1,3340.1,5.41322]
[1722342422356,3.0,3341.1,3340.1,5.41322]
[1722342422575,1.87657033,3341.0,3340.3,2.99374]
[1722342422729,3.12780857,3341.0,3340.3,2.99374]
[1722342423059,3.0,3340.9,3340.1,2.4193]
[1722342423274,3.0,3340.9,3340.1,5.4132]
[1722342423584,5.26686,3340.8,3340.0,0.8]
[1722342423778,3.31542635,3340.7,3340.0,0.8]
[1722342423949,4.87028139,3340.5,3340.0,0.8]
[1722342424353,3.0,3340.4,3340.0,0.8]
[1722342424550,2.99382,3340.3,3340.0,0.8]
[1722342424877,3.0,3340.6,3340.0,0.8]
[1722342424878,4.87018385,3340.1,3340.0,0.8]
[1722342425155,7.52656883,3340.1,3340.0,1.0]
[1722342425368,9.40285909,3340.1,3340.0,1.0]
[1722342425957,7.52656883,3340.1,3340.0,1.0]
[1722342426760,10.52048883,3340.1,3340.0,1.0]
[1722342427718,7.52656883,3340.1,3340.0,1.0]
[1722342428035,10.52048883,3340.1,3340.0,1.0]
[1722342428519,16.25388298,3340.1,3340.0,1.0]
[1722342428724,18.65318298,3340.1,3340.0,1.0]
[1722342429032,16.46370883,3340.1,3340.0,1.0]
[1722342434115,13.46978883,3340.1,3340.0,1.0]
[1722342434326,10.58149634,3340.1,3340.0,1.0]
[1722342434464,5.99392,3340.1,3340.0,1.0]
[1722342434867,7.86939498,3340.1,3340.0,1.0]
[1722342435167,5.99392,3340.1,3340.0,1.0]
[1722342436001,8.98784,3340.1,3340.0,1.0]
[1722342436229,18.48977094,3340.1,3340.0,1.0]
[1722342436361,15.49585094,3340.1,3340.0,1.0]
[1722342436560,13.30795372,3340.1,3340.0,1.0]
[1722342437405,21.48296511,3340.1,3340.0,1.0]
[1722342437645,21.48296511,3340.1,3339.4,0.0635988]
[1722342437646,8.31412,3339.5,3339.4,0.0635988]
[1722342437933,11.86412,3339.5,3339.4,0.0635988]
[1722342438289,14.85858,3339.5,3339.4,0.0635988]
[1722342439027,17.04418559,3339.5,3339.4,0.0635988]
[1722342439189,14.85858,3339.5,3339.4,0.0635988]
[1722342439385,19.02450304,3339.5,3339.4,0.0635988]
[1722342440332,19.83417446,3339.5,3339.4,0.0635988]
[1722342441090,25.41139909,3339.5,3339.4,0.0635988]
[1722342441344,19.83417446,3339.5,3339.4,0.0635988]
[1722342442212,19.02256508,3339.5,3339.4,0.0635988]
[1722342443173,16.83971446,3339.5,3339.4,0.0635988]
[1722342445464,18.70926184,3339.5,3339.4,0.0635988]
[1722342445681,13.84525446,3339.5,3339.4,0.0635988]
[1722342445823,15.71483362,3339.5,3339.4,0.0635988]
[1722342446025,13.38963362,3339.5,3339.4,0.0635988]
[1722342446219,11.52005446,3339.5,3339.4,0.0635988]
[1722342446832,16.38409362,3339.5,3339.4,0.0635988]
[1722342447033,13.38963362,3339.5,3339.4,0.0635988]
[1722342448359,16.38409362,3339.5,3339.4,0.0635988]
[1722342450796,18.76809362,3339.5,3339.4,0.0635988]
[1722342451090,16.89851446,3339.5,3339.4,0.0635988]
[1722342452111,19.89297446,3339.5,3339.4,0.0635988]
[1722342452306,2.99553,3338.3,3338.2,7.42]
[1722342452587,2.9951,3338.8,3337.6,7.42]
[1722342452588,2.99532,3338.6,3337.6,7.42]
[1722342452757,2.99532,3338.6,3337.7,5.40443139]
[1722342452758,3.0,3338.5,3337.7,5.40443139]
[1722342452960,3.0,3338.5,3337.8,0.05991118]
[1722342452961,5.99536,3338.5,3337.8,0.05991118]
[1722342453265,2.9955,3338.4,3337.9,1.28244812]
[1722342453466,3.0,3338.3,3337.7,2.3485]
[1722342453866,3.0,3338.3,3337.6,10.4161]
[1722342453867,2.99553,3338.3,3337.6,7.42]
[1722342456064,5.99522,3338.7,3337.9,1.23444805]
[1722342456269,5.99522,3338.7,3337.9,1.33289605]
[1722342456478,2.99526,3338.6,3337.9,1.33289605]
[1722342456678,3.0,3338.5,3337.9,1.33289605]
[1722342456866,2.99546,3338.4,3337.9,1.33289605]
[1722342457385,3.0,3338.3,3337.9,1.33289605]
[1722342457943,3.0,3338.3,3337.9,0.098448]
[1722342458144,3.0,3338.3,3337.7,2.3853]
[1722342458344,3.0,3338.4,3338.0,0.09843536]
[1722342458601,3.0,3338.4,3337.7,2.3853]
[1722342458754,3.0,3338.4,3338.1,0.09842272]
[1722342458952,3.0,3338.4,3337.8,1.280146]
[1722342459198,3.0,3338.4,3338.2,0.09841009]
[1722342459361,3.0,3338.4,3337.8,1.280146]
[1722342459563,3.0,3338.4,3338.3,0.09839746]
[1722342459893,5.99515,3338.8,3338.2,2.4681]
[1722342459894,3.0,3338.8,3338.2,2.4681]
[1722342460064,3.0,3338.8,3338.3,0.64477046]
[1722342460301,5.99509,3338.8,3338.3,0.64477046]
[1722342460485,3.0,3338.8,3338.3,0.09839746]
[1722342460686,2.99522,3338.7,3338.3,0.09839746]
[1722342461114,3.0,3338.8,3338.3,0.09839746]
[1722342461312,3.0,3338.7,3338.3,0.09839746]
[1722342463330,5.99519,3338.7,3338.3,0.09839746]
[1722342463698,5.99519,3338.7,3337.9,2.2869]
[1722342463699,2.99541,3338.5,3337.9,2.2869]
[1722342463887,3.0,3338.7,3337.9,3.557206]
[1722342463888,2.99527,3338.6,3337.9,3.557206]
[1722342464224,3.0,3338.5,3338.0,0.09865989]
[1722342464396,2.99547,3338.4,3338.0,0.09865989]
[1722342464594,2.99547,3338.4,3337.6,7.42]
[1722342464595,2.99563,3338.2,3337.6,7.42]
[1722342464911,2.99531,3338.6,3338.1,0.09864725]
[1722342465221,5.9954,3338.5,3338.2,0.09863462]
[1722342465725,5.9954,3338.5,3337.6,11.698303]
[1722342466029,5.9954,3338.5,3338.3,0.09862199]
[1722342466326,5.9954,3338.5,3337.6,11.698303]
[1722342466524,5.9954,3338.5,3337.7,0.69426505]
[1722342467018,2.99546,3338.4,3337.8,0.09868516]
[1722342467181,3.0,3338.3,3337.8,0.09868516]
[1722342467386,5.99554,3338.3,3337.7,0.69426505]
[1722342467623,5.99554,3338.3,3337.9,0.09867253]
[1722342467846,5.99554,3338.3,3337.8,0.09868516]
[1722342468025,5.99554,3338.3,3338.0,0.09865989]
[1722342468345,2.99564,3338.2,3338.1,0.09864725]
[1722342468543,5.99564,3338.2,3337.6,7.42]
[1722342468705,5.99554,3338.3,3338.1,0.09864725]
[1722342468901,2.99582,3338.0,3337.6,7.42]
[1722342469136,2.99562,3338.2,3337.6,7.42]
[1722342469441,5.9913,3338.2,3337.7,0.0986978]
[1722342469743,2.99563,3338.2,3337.7,0.0986978]
[1722342470102,3.0,3338.3,3337.7,0.0986978]
[1722342470103,2.99572,3338.1,3337.7,0.0986978]
[1722342471114,5.99558,3338.3,3337.7,0.0986978]
[1722342471115,2.99581,3338.0,3337.7,0.0986978]
[1722342471630,2.9959,3337.9,3337.7,0.0986978]
[1722342471799,2.99581,3338.0,3337.7,0.0986978]
[1722342473344,2.99598,3337.8,3337.7,0.0986978]
[1722342473500,2.99619,3337.6,3337.1,9.8853]
[1722342473705,2.99619,3337.6,3337.1,2.4653]
[1722342473904,2.99619,3337.6,3337.2,0.09898183]
[1722342474198,1.139395,3338.0,3337.2,0.09898183]
[1722342474199,2.99607,3337.7,3337.2,0.09898183]
[1722342476964,5.99221,3337.7,3337.2,0.09898183]
[1722342477104,2.99607,3337.7,3337.2,0.09898183]
[1722342477304,2.99607,3337.7,3337.0,1.0]
[1722342477705,5.99221,3337.7,3337.1,0.09911802]
[1722342477920,2.99607,3337.7,3337.1,0.09911802]
[1722342478451,2.99608,3337.7,3337.1,0.09911802]
[1722342479709,2.99617,3337.6,3337.1,0.09911802]
[1722342479909,2.99628,3337.5,3337.0,1.0]
[1722342480105,2.99617,3337.6,3337.0,1.0]
[1722342480315,2.99617,3337.6,3337.1,0.09911802]
[1722342480609,2.99607,3337.7,3337.0,1.0]
[1722342480850,3.0,3337.6,3337.2,0.09918027]
[1722342481035,3.0,3337.6,3337.1,0.09919291]
[1722342481244,3.0,3337.6,3337.3,0.09916763]
[1722342481458,3.0,3337.6,3337.2,0.09918027]
[1722342481610,3.0,3337.6,3337.4,0.09915499]